bitfinex-derivatives/quotes_SOLF0:USTF0_20250514
["timestamp","ask_amount","ask_price","bid_price","bid_amount"]
[1747187070967,75.02,184.29,184.21,3.587]
[1747187071172,5.31407453,184.37,184.21,3.587]
[1747187071371,152.5096839,184.36,184.21,3.587]
[1747187071775,151.56,184.36,184.21,3.587]
[1747187072076,0.94962077,184.35,184.21,3.587]
[1747187072473,151.56,184.36,184.21,3.587]
[1747187072979,2.66441004,184.42,184.27,5.31407453]
[1747187073167,151.68,184.41,184.28,1.8645]
[1747187073371,0.94937961,184.4,184.28,1.8645]
[1747187073671,151.68,184.41,184.29,1.7079]
[1747187074172,151.68,184.41,184.29,3.5839]
[1747187075377,151.68,184.41,184.25,75.04]
[1747187075773,5.4246,184.34,184.25,75.04]
[1747187075976,75.04,184.34,184.23,5.4484]
[1747187076466,74.97998193,184.34,184.23,5.4484]
[1747187077072,74.97998193,184.34,184.15,5.31407453]
[1747187077273,5.2727,184.33,184.15,10.65207453]
[1747187077472,468.86,184.32,184.15,10.65207453]
[1747187077673,5.4265,184.27,184.15,10.65207453]
[1747187077868,154.54,184.27,184.15,10.65207453]
[1747187078779,159.9666,184.27,184.15,10.65207453]
[1747187079280,154.54,184.27,184.15,10.65207453]
[1747187079879,5.4272,184.25,184.15,10.65207453]
[1747187080276,468.94,184.44,184.19,5.31407453]
[1747187080475,5.31407453,184.42,184.2,154.36]
[1747187080877,0.95006701,184.41,184.2,154.36]
[1747187082777,5.4251,184.32,184.2,154.36]
[1747187082973,159.2651,184.32,184.2,154.36]
[1747187083776,153.84,184.32,184.2,154.36]
[1747187083983,153.84,184.32,184.2,77.18]
[1747187084381,5.4257,184.3,184.2,77.18]
[1747187084985,5.426,184.29,184.2,77.18]
[1747187085481,153.84,184.32,184.2,77.18]
[1747187085673,5.4257,184.3,184.2,77.18]
[1747187085878,153.84,184.32,184.2,77.18]
[1747187086283,5.426,184.29,184.2,77.18]
[1747187086685,153.84,184.32,184.2,77.18]
[1747187086981,0.94470234,184.39,184.2,300.18]
[1747187087175,0.95016681,184.38,184.22,5.3426824]
[1747187087380,156.8309,184.43,184.23,5.3498]
[1747187087583,0.94983733,184.42,184.26,5.3426824]
[1747187088487,5.4233,184.38,184.26,5.3426824]
[1747187088687,158.6702,184.43,184.26,5.3426824]
[1747187088986,5.4237,184.37,184.26,5.3426824]
[1747187089580,5.4242,184.35,184.26,5.3426824]
[1747187089787,152.8,184.37,184.23,5.3498]
[1747187089986,152.78,184.36,184.23,5.3498]
[1747187090183,77.18,184.36,184.26,5.3426824]
[1747187090384,77.18,184.36,184.27,77.18]
[1747187090585,77.18,184.36,184.28,75.5]
[1747187091580,75.5,184.4,184.28,75.5]
[1747187091785,77.18,184.41,184.3,5.3426824]
[1747187091987,77.18,184.41,184.31,5.464]
[1747187094192,5.4239,184.36,184.31,5.464]
[1747187094392,77.18,184.41,184.31,3.6221]
[1747187094591,77.18,184.41,184.24,155.3127]
[1747187094891,5.4241,184.36,184.24,158.7993]
[1747187095191,77.18,184.41,184.24,158.7993]
[1747187095391,5.4239,184.36,184.24,158.7993]
[1747187095893,5.4235,184.38,184.24,158.7993]
[1747187096093,77.18,184.41,184.24,158.7993]
[1747187096392,5.4238,184.37,184.24,158.7993]
[1747187096888,5.424,184.36,184.24,158.7993]
[1747187097188,77.18,184.41,184.24,158.7993]
[1747187097590,5.4238,184.37,184.24,158.7993]
[1747187097789,77.18,184.41,184.24,158.7993]
[1747187098293,0.94987505,184.4,184.24,158.7993]
[1747187098591,77.18,184.41,184.24,158.7993]
[1747187098791,5.4238,184.37,184.24,158.7993]
[1747187099391,77.18,184.41,184.24,158.7993]
[1747187099789,6.29254873,184.4,184.24,82.4393]
[1747187100193,0.94986633,184.39,184.24,5.2593]
[1747187100499,0.94986633,184.39,184.24,3.4866]
[1747187100693,5.3426824,184.36,184.2,1.8669]
[1747187100883,158.90876633,184.35,184.2,1.8669]
[1747187101086,5.3426824,184.32,184.17,3.6919]
[1747187101287,468.94,184.31,184.17,3.6919]
[1747187101490,469.88986633,184.31,184.17,1.8468]
[1747187101791,5.3426824,184.28,184.15,6.18347593]
[1747187101990,153.46986633,184.27,184.15,6.18347593]
[1747187102291,5.3426824,184.24,184.15,6.18347593]
[1747187102487,5.3189,184.23,184.15,6.18347593]
[1747187102692,5.3426824,184.2,184.07,1.8669]
[1747187102887,152.42,184.19,184.07,1.8669]
[1747187103093,5.4306,184.14,184.07,1.8669]
[1747187103794,152.42,184.19,184.07,1.8669]
[1747187103795,5.4307,184.13,184.07,1.8669]
[1747187104196,152.42,184.19,184.07,1.8669]
[1747187104389,0.9510556,184.18,184.07,1.8669]
[1747187104984,152.42,184.19,184.07,1.8669]
[1747187105294,5.4295,184.17,184.07,1.8669]
[1747187105587,152.42,184.19,184.07,1.8669]
[1747187106187,152.42,184.19,184.08,5.3426824]
[1747187106383,152.42,184.19,184.09,74.94]
[1747187106584,5.3426824,184.29,184.09,297.94]
[1747187106789,152.16,184.28,184.09,297.94]
[1747187107089,0.95061293,184.27,184.09,297.94]
[1747187107295,0.95061293,184.27,184.1,8.6944763]
[1747187107492,5.4279,184.23,184.1,8.6944763]
[1747187107691,0.95061293,184.27,184.1,231.6944763]
[1747187107893,5.4274,184.24,184.1,231.6944763]
[1747187108092,152.16,184.28,184.1,231.6944763]
[1747187108295,0.95059206,184.27,184.1,231.6944763]
[1747187108496,9.64506836,184.27,184.1,223.0]
[1747187108697,0.95059206,184.26,184.1,223.0]
[1747187109090,5.4279,184.23,184.1,223.0]
[1747187109291,152.16,184.28,184.1,223.0]
[1747187109492,0.95061221,184.27,184.1,223.0]
[1747187111498,5.4277,184.23,184.1,223.0]
[1747187111698,152.16,184.28,184.1,223.0]
[1747187111999,5.4278,184.23,184.1,223.0]
[1747187112401,152.16,184.28,184.1,223.0]
[1747187112602,5.4275,184.24,184.1,223.0]
[1747187112801,152.16,184.28,184.1,223.0]
[1747187112998,152.16,184.28,184.11,3.6798]
[1747187113198,0.95062098,184.27,184.11,3.6798]
[1747187113399,0.95062098,184.27,184.11,78.0598]
[1747187113705,5.428,184.22,184.11,78.0598]
[1747187114798,474.6702,184.3,184.11,3.6798]
[1747187115004,8.6944763,184.26,184.11,3.6798]
[1747187115200,8.6944763,184.22,184.07,151.0469]
[1747187115404,154.5665,184.21,184.07,1.8669]
[1747187117108,5.4308,184.13,184.07,1.8669]
[1747187118106,5.431,184.12,184.07,1.8669]
[1747187118302,149.14,184.14,184.03,74.96]
[1747187119608,149.14,184.14,184.02,1.8199]
[1747187119800,0.95132332,184.13,184.02,1.8199]
[1747187120906,0.95132332,184.13,184.01,3.6377]
[1747187121097,5.4335,184.04,183.97,1.7438]
[1747187121303,74.98,184.06,183.97,1.7438]
[1747187122208,74.98,184.06,183.94,3.4511]
[1747187122405,83.6744763,184.06,183.9,148.46]
[1747187122604,0.95178761,184.05,183.89,1.86]
[1747187123005,8.6944763,184.02,183.89,1.86]
[1747187123308,74.45178761,184.01,183.84,73.44]
[1747187123505,75.0,184.0,183.85,1.86]
[1747187123712,75.95178761,184.0,183.85,1.86]
[1747187123900,75.0,184.0,183.85,1.86]
[1747187124208,5.4362,183.95,183.85,1.86]
[1747187124410,73.36,183.96,183.85,1.86]
[1747187125209,5.436,183.95,183.85,1.86]
[1747187125413,73.36,183.96,183.85,1.86]
[1747187126609,5.435,183.99,183.85,1.86]
[1747187126810,147.98,184.0,183.85,1.86]
[1747187127109,5.4354,183.97,183.85,1.86]
[1747187127308,147.98,184.0,183.85,1.86]
[1747187127510,8.6944763,184.06,183.85,1.86]
[1747187127810,147.98,184.02,183.87,8.6944763]
[1747187128109,147.98,184.02,183.88,75.02]
[1747187128311,147.98,184.02,183.89,72.82]
[1747187128607,147.98,184.02,183.91,8.6944763]
[1747187128808,153.414,184.02,183.92,3.4883]
[1747187129008,147.98,184.02,183.92,3.4883]
[1747187129515,147.98,184.02,183.93,1.703]
[1747187131211,5.4329,184.06,183.94,72.46]
[1747187131411,147.48,184.06,183.94,72.46]
[1747187131613,75.02,184.06,183.94,147.48]
[1747187132412,75.02,184.06,183.94,75.02]
[1747187133607,80.38355554,184.06,183.84,5.36355554]
[1747187133912,0.95188055,184.05,183.88,3.5524]
[1747187134415,5.36355554,184.01,183.85,1.7237]
[1747187134607,150.0349,184.0,183.85,1.7237]
[1747187134912,0.95188055,183.99,183.85,1.7237]
[1747187135413,5.36355554,183.97,183.82,3.5402]
[1747187136409,5.36355554,183.93,183.76,72.38]
[1747187136707,145.61188055,183.92,183.74,72.38]
[1747187137019,5.36355554,183.89,183.73,3.4619]
[1747187137403,0.95188055,183.88,183.73,3.4619]
[1747187137916,144.56,183.87,183.73,3.4619]
[1747187138702,5.4395,183.83,183.73,3.4619]
[1747187139002,144.46,183.82,183.73,3.4619]
[1747187139403,5.4401,183.81,183.73,3.4619]
[1747187139803,149.9001,183.82,183.73,3.4619]
[1747187140002,144.46,183.82,183.73,3.4619]
[1747187141514,3.5598,183.9,183.74,144.28]
[1747187141717,145.23271156,183.89,183.74,144.28]
[1747187141913,144.28,183.89,183.74,144.28]
[1747187142607,144.28,183.89,183.75,5.36355554]
[1747187143215,71.74,183.93,183.79,5.36355554]
[1747187143414,71.74,183.93,183.8,145.8786]
[1747187143813,613.94,183.96,183.83,5.36355554]
[1747187144016,613.94,183.96,183.84,3.6466]
[1747187144218,613.94,183.96,183.85,72.42]
[1747187144612,5.4376,183.9,183.85,72.42]
[1747187144816,5.4376,183.9,183.84,3.6466]
[1747187145011,144.26,183.91,183.84,3.6466]
[1747187146012,71.84,183.91,183.84,3.6466]
[1747187146516,72.06,183.95,183.84,3.6466]
[1747187147315,547.6557,183.96,183.85,71.96]
[1747187147513,5.4357,183.96,183.86,72.42]
[1747187147714,144.32,183.98,183.86,72.42]
[1747187147917,144.32,183.98,183.86,77.78355554]
[1747187148317,149.7552,183.98,183.86,77.78355554]
[1747187148518,72.42,183.98,183.86,77.78355554]
[1747187149019,71.82,184.01,183.86,77.78355554]
[1747187149219,71.82,184.01,183.9,5.36355554]
[1747187149418,71.82,184.01,183.91,146.106]
[1747187149616,470.04,184.05,183.91,146.106]
[1747187149817,144.28,184.04,183.91,1.806]
[1747187150018,5.4352,183.98,183.91,1.806]
[1747187150419,5.4342,184.01,183.91,1.806]
[1747187150619,71.78,184.01,183.91,1.806]
[1747187151022,5.4348,183.99,183.91,1.806]
[1747187151321,71.78,184.01,183.91,1.806]
[1747187151522,72.42,184.04,183.91,1.806]
[1747187151725,71.58,184.03,183.91,1.806]
[1747187152029,72.42,184.04,183.92,71.64]
[1747187152222,144.1,184.04,183.93,72.4]
[1747187152720,144.1,184.04,183.94,3.6599]
[1747187153227,71.68,184.04,183.94,3.6599]
[1747187154021,5.4322,184.08,183.94,3.6599]
[1747187154219,76.7922,184.08,183.94,3.6599]
[1747187154819,71.36,184.08,183.94,3.6599]
[1747187155124,5.4336,184.03,183.94,3.6599]
[1747187155422,71.24,184.03,183.93,72.4]
[1747187155623,71.24,184.03,183.91,1.806]
[1747187155819,5.4353,183.98,183.91,1.806]
[1747187156019,71.18,183.98,183.88,3.6331]
[1747187156219,71.18,183.98,183.82,1.8564]
[1747187156414,5.36355554,183.96,183.8,72.38]
[1747187156620,0.95216602,183.95,183.78,6.18347593]
[1747187156823,5.438,183.89,183.77,1.8564]
[1747187157024,144.66,183.88,183.77,1.8564]
[1747187157617,144.66,183.88,183.78,8.72840954]
[1747187157821,72.28,183.88,183.78,8.72840954]
[1747187158226,8.72840954,183.99,183.78,8.72840954]
[1747187158428,144.46,183.98,183.78,8.72840954]
[1747187158617,145.41221223,183.98,183.78,8.72840954]
[1747187158818,144.38,183.97,183.82,8.72840954]
[1747187159130,144.38,183.97,183.83,147.9905]
[1747187159422,1.8113,184.01,183.83,147.9905]
[1747187159629,1.7024,184.07,183.94,8.72840954]
[1747187159826,72.0,184.11,183.95,146.0917]
[1747187160024,0.95164257,184.1,183.95,619.5822]
[1747187160327,5.4321,184.08,183.95,619.5822]
[1747187160725,72.0,184.11,183.95,619.5822]
[1747187161030,5.4322,184.08,183.95,619.5822]
[1747187161232,72.0,184.11,183.95,619.5822]
[1747187161829,0.9514938,184.1,183.95,619.5822]
[1747187162429,71.62,184.12,183.95,619.5822]
[1747187162730,0.95145357,184.11,183.98,8.72840954]
[1747187162926,3.5926,184.13,183.98,8.72840954]
[1747187163126,3.5926,184.13,183.98,231.72840954]
[1747187164026,72.55140185,184.12,183.95,475.2022]
[1747187164230,9.67981139,184.11,183.96,71.6]
[1747187164433,71.44,184.1,183.96,71.6]
[1747187164729,74.25050185,184.1,183.96,71.6]
[1747187165027,0.95140185,184.09,183.96,71.6]
[1747187165529,5.4324,184.07,183.96,71.6]
[1747187165732,0.95140185,184.09,183.96,71.6]
[1747187166030,0.95140185,184.09,183.9,233.48660954]
[1747187166328,8.72840954,184.01,183.82,78.9]
[1747187166528,166.71170185,184.0,183.82,303.6175]
[1747187166726,8.72840954,183.97,183.82,78.9]
[1747187166933,0.95228281,183.96,183.82,78.9]
[1747187167130,8.72840954,183.97,183.82,78.9]
[1747187167328,8.72840954,183.93,183.77,1.7175]
[1747187167632,5.4389,183.85,183.75,81.68]
[1747187167927,81.94,183.84,183.75,81.68]
[1747187168126,81.96,183.83,183.75,81.68]
[1747187173734,81.36,183.88,183.75,81.68]
[1747187174128,86.7778,183.89,183.75,81.68]
[1747187174537,5.4378,183.89,183.75,81.68]
[1747187174736,86.6378,183.89,183.75,81.68]
[1747187175232,81.72,183.91,183.76,8.73506545]
[1747187175233,5.4374,183.9,183.76,8.73506545]
[1747187175434,86.5774,183.9,183.76,231.73506545]
[1747187175629,81.14,183.9,183.77,81.08]
[1747187177135,1.7372,183.95,183.77,304.08]
[1747187177336,80.94,183.94,183.8,8.73506545]
[1747187177530,86.3763,183.94,183.81,83.4653]
[1747187177732,80.94,183.94,183.81,83.4653]
[1747187178234,81.74,183.96,183.81,83.4653]
[1747187178435,162.5,183.96,183.81,306.4653]
[1747187178629,81.74,183.96,183.83,8.73506545]
[1747187178935,81.74,183.96,183.84,82.4952]
[1747187180937,80.2,183.98,183.84,82.4952]
[1747187183834,80.2,183.98,183.84,1.7952]
[1747187184140,5.4366,183.93,183.84,1.7952]
[1747187184440,80.2,183.98,183.84,1.7952]
[1747187184939,5.4363,183.94,183.84,1.7952]
[1747187185140,0.95224294,183.97,183.84,1.7952]
[1747187185434,80.2,183.98,183.84,1.7952]
[1747187185644,79.16,183.97,183.84,1.7952]
[1747187187042,79.16,183.97,183.86,8.73506545]
[1747187187340,81.72,183.99,183.86,8.73506545]
[1747187187341,81.72,183.99,183.87,157.62]
[1747187188042,5.4351,183.98,183.87,157.62]
[1747187188343,81.72,183.99,183.87,157.62]
[1747187188543,87.155,183.99,183.87,157.62]
[1747187188736,81.72,183.99,183.87,157.62]
[1747187189246,81.72,183.99,183.86,78.8]
[1747187189636,81.72,183.99,183.84,224.7952]
[1747187189838,0.95212576,183.98,183.85,78.8]
[1747187190342,5.4367,183.93,183.85,78.8]
[1747187191543,5.4368,183.92,183.85,78.8]
[1747187191842,78.16,183.95,183.85,78.8]
[1747187192746,5.4367,183.93,183.85,78.8]
[1747187193148,78.16,183.95,183.85,78.8]
[1747187193544,78.16,183.95,183.8,80.6146]
[1747187193545,0.9522968,183.94,183.8,80.6146]
[1747187193844,5.4375,183.9,183.8,80.6146]
[1747187194044,78.8,183.93,183.8,80.6146]
[1747187194346,0.95242935,183.92,183.8,80.6146]
[1747187195047,84.2367,183.93,183.8,80.6146]
[1747187195845,78.8,183.93,183.8,80.6146]
[1747187197052,84.2366,183.93,183.8,80.6146]
[1747187197348,84.2366,183.93,183.8,85.98287155]
[1747187198554,5.4369,183.92,183.8,85.98287155]
[1747187199251,84.2366,183.93,183.8,85.98287155]
[1747187199556,78.8,183.93,183.8,85.98287155]
[1747187199947,5.4371,183.91,183.8,85.98287155]
[1747187200250,78.8,183.93,183.8,85.98287155]
[1747187200452,84.2368,183.93,183.8,7.18287155]
[1747187200648,78.8,183.93,183.81,78.8]
[1747187201752,0.95246771,183.92,183.81,78.8]
[1747187201954,5.4383,183.88,183.81,78.8]
[1747187202254,76.16,183.89,183.81,78.8]
[1747187202754,78.8,183.93,183.81,78.8]
[1747187202957,0.95243792,183.92,183.81,78.8]
[1747187203555,78.8,183.93,183.81,78.8]
[1747187203753,5.4372,183.91,183.81,78.8]
[1747187204049,78.8,183.93,183.81,78.8]
[1747187204252,5.4372,183.91,183.81,78.8]
[1747187204452,78.8,183.93,183.81,78.8]
[1747187204856,0.95240518,183.92,183.81,78.8]
[1747187205054,78.8,183.93,183.81,78.8]
[1747187205956,84.2367,183.93,183.81,78.8]
[1747187206259,78.8,183.93,183.81,78.8]
[1747187206448,5.4369,183.92,183.81,78.8]
[1747187207157,78.8,183.93,183.81,78.8]
[1747187207559,5.4369,183.92,183.81,78.8]
[1747187208356,78.8,183.93,183.81,78.8]
[1747187208957,5.4369,183.92,183.81,78.8]
[1747187209761,5.4371,183.91,183.81,78.8]
[1747187210256,5.4369,183.92,183.81,78.8]
[1747187210459,78.8,183.93,183.81,78.8]
[1747187210959,5.4368,183.92,183.81,78.8]
[1747187211457,84.2366,183.93,183.81,78.8]
[1747187211761,78.8,183.93,183.81,78.8]
[1747187212561,5.4374,183.9,183.81,78.8]
[1747187213156,5.4378,183.89,183.78,693.1]
[1747187213359,78.8,183.93,183.79,76.1]
[1747187213560,74.24,183.89,183.79,76.1]
[1747187213761,5.4389,183.86,183.79,76.1]
[1747187213957,74.24,183.89,183.79,76.1]
[1747187214258,5.4397,183.83,183.76,3.5967]
[1747187214462,5.4397,183.83,183.76,1.8043]
[1747187214954,5.4393,183.84,183.76,1.8043]
[1747187216466,10.8681,184.02,183.77,79.14827155]
[1747187216762,5.36827155,184.0,183.78,1.8186]
[1747187216959,5.4369,183.92,183.78,1.8186]
[1747187217160,5.4369,183.92,183.79,149.84]
[1747187218063,73.74,183.93,183.78,1.8186]
[1747187218261,0.9524845,183.92,183.79,76.1]
[1747187218965,5.4378,183.89,183.79,76.1]
[1747187219269,73.4,183.9,183.79,76.1]
[1747187220657,3.6577,183.93,183.79,76.1]
[1747187220861,74.13241555,183.92,183.79,76.1]
[1747187221066,5.4378,183.89,183.79,76.1]
[1747187221567,5.4374,183.91,183.79,76.1]
[1747187221768,75.1882,183.94,183.79,76.1]
[1747187221769,73.4,183.94,183.79,299.1]
[1747187221969,73.4,183.94,183.81,5.36827155]
[1747187222264,5.4367,183.93,183.81,5.36827155]
[1747187223067,73.4,183.94,183.79,223.0]
[1747187223267,0.95235259,183.93,183.79,296.4]
[1747187223768,73.4,183.94,183.8,5.36827155]
[1747187225075,72.66,183.97,183.8,475.48827155]
[1747187225261,73.4,183.98,183.84,5.36827155]
[1747187225460,73.4,183.98,183.85,149.7371]
[1747187225867,73.4,183.98,183.86,1.8114]
[1747187226067,72.56,183.99,183.86,1.8114]
[1747187226772,5.4351,183.98,183.86,1.8114]
[1747187227180,470.1,184.04,183.86,224.8114]
[1747187227377,5.4342,184.02,183.88,5.36827155]
[1747187227678,72.26,184.03,183.88,5.36827155]
[1747187227878,5.4353,183.98,183.88,5.36827155]
[1747187228074,72.26,184.03,183.88,5.36827155]
[1747187228476,0.95188197,184.02,183.86,1.8114]
[1747187230584,5.4345,184.0,183.86,1.8114]
[1747187230777,72.26,184.03,183.86,1.8114]
[1747187231081,0.9519065,184.02,183.86,1.8114]
[1747187231281,0.9519065,184.02,183.87,5.36827155]
[1747187231486,0.9519065,184.02,183.87,228.36827155]
[1747187231783,71.84,184.03,183.87,228.36827155]
[1747187232684,77.2738,184.03,183.87,228.36827155]
[1747187232984,0.95186679,184.02,183.87,228.36827155]
[1747187233682,0.95186679,184.02,183.87,223.0]
[1747187234383,5.4345,184.0,183.87,223.0]
[1747187234583,78.8145,184.0,183.87,223.0]
[1747187235091,73.38,184.0,183.87,228.36827155]
[1747187236088,77.2736,184.03,183.87,228.36827155]
[1747187236285,71.84,184.03,183.87,228.36827155]
[1747187236789,5.4341,184.02,183.87,228.36827155]
[1747187237293,71.84,184.03,183.87,228.36827155]
[1747187237893,5.4339,184.02,183.87,228.36827155]
[1747187239195,71.84,184.03,183.87,228.36827155]
[1747187239491,0.95183109,184.02,183.87,228.36827155]
[1747187239690,5.4348,183.99,183.87,228.36827155]
[1747187240290,5.4351,183.98,183.88,70.56]
[1747187240489,71.84,184.03,183.88,70.56]
[1747187240688,0.9519476,184.02,183.88,70.56]
[1747187240884,71.4519476,184.03,183.88,293.56]
[1747187241082,540.8,184.04,183.88,293.56]
[1747187241387,0.95179015,184.03,183.91,5.36827155]
[1747187241589,70.7,184.04,183.92,70.7]
[1747187241792,70.54,184.06,183.93,70.54]
[1747187242191,70.54,184.06,183.94,5.3968]
[1747187243491,70.54,184.06,184.02,5.4339]
[1747187244587,81.34827155,184.06,183.94,3.6719]
[1747187244790,2.65180599,184.05,183.89,293.7]
[1747187245089,1.7,184.05,183.93,5.4363]
[1747187245691,1.7,184.05,183.89,293.7]
[1747187245893,5.4343,184.01,183.89,293.7]
[1747187246091,141.9,184.0,183.89,293.7]
[1747187246291,141.9,184.0,183.89,70.7]
[1747187246794,141.8,184.0,183.89,70.7]
[1747187247191,5.4348,183.99,183.93,5.4363]
[1747187247392,141.8,184.0,183.89,70.7]
[1747187249097,147.2345,184.0,183.93,5.4363]
[1747187249292,141.8,184.0,183.89,70.7]
[1747187249595,71.1,184.0,183.89,70.7]
[1747187249796,71.1,184.0,183.96,5.4354]
[1747187249997,71.1,184.0,183.89,293.7]
[1747187250699,71.1,184.0,183.96,5.4354]
[1747187250901,71.1,184.0,183.89,293.7]
[1747187251199,71.1,184.0,183.89,70.7]
[1747187251892,70.7,183.99,183.89,70.7]
[1747187252199,5.4353,183.98,183.92,5.4366]
[1747187252495,70.7,183.99,183.92,5.4366]
[1747187252792,70.7,183.99,183.88,3.6703]
[1747187253699,5.436,183.95,183.89,5.4376]
[1747187253900,0.95206512,183.98,183.89,5.4376]
[1747187254098,0.95206512,183.98,183.88,3.6703]
[1747187254500,0.95206512,183.98,183.85,72.5577]
[1747187254900,5.4362,183.95,183.89,5.4375]
[1747187255104,70.48,183.95,183.85,72.5577]
[1747187255296,70.7,183.94,183.85,72.5577]
[1747187255495,76.06827155,183.94,183.79,0.94641085]
[1747187255696,5.36827155,183.9,183.73,5.3854]
[1747187255895,147.0156,183.89,183.73,5.3854]
[1747187256100,0.95225861,183.88,183.73,5.3854]
[1747187256293,5.36827155,183.86,183.73,3.6291]
[1747187256602,5.36827155,183.82,183.68,1.7563]
[1747187256797,145.3791,183.81,183.66,18.55042779]
[1747187256988,146.33135861,183.81,183.68,5.4439]
[1747187257192,5.36827155,183.78,183.66,18.55042779]
[1747187257394,5.36827155,183.78,183.62,3.6291]
[1747187257599,1.8277,183.77,183.62,3.6291]
[1747187257899,143.52,183.76,183.62,3.6291]
[1747187258296,144.47225861,183.76,183.62,3.6291]
[1747187258496,0.95225861,183.75,183.62,3.6291]
[1747187258895,5.4427,183.73,183.64,5.445]
[1747187259099,0.95225861,183.75,183.62,3.6291]
[1747187259300,143.52,183.76,183.62,3.6291]
[1747187259503,5.4436,183.7,183.62,3.6291]
[1747187259802,72.68,183.69,183.62,3.6291]
[1747187260203,78.1239,183.69,183.62,3.6291]
[1747187261003,78.1239,183.69,183.62,9.0746]
[1747187262506,72.34,183.73,183.62,3.6291]
[1747187263601,5.4431,183.71,183.64,5.4448]
[1747187263801,72.34,183.73,183.62,3.6291]
[1747187264206,5.4427,183.72,183.62,3.6291]
[1747187264708,72.34,183.73,183.62,3.6291]
[1747187265107,77.7827,183.73,183.66,5.4445]
[1747187265507,72.34,183.73,183.58,225.05223092]
[1747187265811,72.34,183.73,183.6,5.4463]
[1747187266003,0.95360118,183.72,183.6,5.4463]
[1747187266408,1.885,183.71,183.6,5.4463]
[1747187266606,1.885,183.71,183.58,2.05223092]
[1747187266807,2.76640118,183.7,183.58,2.05223092]
[1747187267007,70.78,183.69,183.58,2.05223092]
[1747187267208,5.4451,183.65,183.58,2.05223092]
[1747187267411,73.69360118,183.68,183.58,2.05223092]
[1747187267611,72.74,183.68,183.58,2.05223092]
[1747187268011,5.4448,183.65,183.58,2.05223092]
[1747187268213,0.9538121,183.67,183.58,2.05223092]
[1747187268415,2.8050121,183.67,183.58,2.05223092]
[1747187268613,5.4452,183.64,183.58,2.05223092]
[1747187269108,1.8512,183.67,183.58,2.05223092]
[1747187269315,72.6,183.63,183.58,2.05223092]
[1747187272011,72.6,183.63,183.59,5.4465]
[1747187272210,5.4447,183.66,183.59,5.4465]
[1747187272814,5.4443,183.67,183.6,5.4463]
[1747187273016,144.78,183.68,183.58,2.05223092]
[1747187273017,144.74,183.68,183.58,2.05223092]
[1747187273717,150.184,183.68,183.62,5.4456]
[1747187274015,144.74,183.68,183.58,2.05223092]
[1747187274214,5.4447,183.66,183.6,5.446]
[1747187275006,5.4447,183.66,183.61,5.4459]
[1747187275211,78.0041,183.68,183.58,2.05223092]
[1747187275513,72.56,183.68,183.61,5.4458]
[1747187275914,72.56,183.68,183.58,2.05223092]
[1747187276414,5.4451,183.65,183.58,2.05223092]
[1747187276618,72.56,183.68,183.58,2.05223092]
[1747187277318,5.4449,183.65,183.6,5.446]
[1747187277515,72.56,183.68,183.58,2.05223092]
[1747187277813,542.88,183.72,183.58,2.05223092]
[1747187278013,614.78,183.72,183.59,5.36827155]